[Event "Titled Tuesday Blitz December 27 Early 2022"]
[White "Sargissyan, Sargis"]
[Black "Marjanovic, Annamaria"]
[WhiteFideId "13303210"]
[BlackFideId "750930"]
[WhiteElo "2234"]
[BlackElo "2273"]
[Result "0-1"]
[Round "06"]
[TimeControl "180+2"]
[Date "2022.12.27"]
[WhiteClock "0:00:02"]
[BlackClock "0:00:19"]

1. e4 {[%clk 0:03:00]}  e6 {[%clk 0:02:59]} 2. d4 {[%clk 0:03:00]}  d5 {[%clk 0:02:59]} 3. Nc3 {[%clk 0:03:01]}  Nf6 {[%clk 0:02:58]} 4. Bg5 {[%clk 0:03:00]}  Bb4 {[%clk 0:02:56]} 5. e5 {[%clk 0:02:59]}  h6 {[%clk 0:02:56]} 6. Be3 {[%clk 0:02:59]}  Ne4 {[%clk 0:02:53]} 7. Qg4 {[%clk 0:02:59]}  g6 {[%clk 0:02:39]} 8. a3 {[%clk 0:02:57]}  Bxc3+ {[%clk 0:02:36]} 9. bxc3 {[%clk 0:02:57]}  c5 {[%clk 0:02:35]} 10. Bd3 {[%clk 0:02:23]}  h5 {[%clk 0:02:34]} 11. Qf4 {[%clk 0:02:08]}  g5 {[%clk 0:02:27]} 12. Qf3 {[%clk 0:02:08]}  Nxc3 {[%clk 0:02:24]} 13. dxc5 {[%clk 0:01:40]}  Nc6 {[%clk 0:02:15]} 14. Qg3 {[%clk 0:01:39]}  Ne4 {[%clk 0:01:48]} 15. Bxe4 {[%clk 0:01:27]}  dxe4 {[%clk 0:01:49]} 16. Qxg5 {[%clk 0:01:27]}  Qa5+ {[%clk 0:01:20]} 17. Kf1 {[%clk 0:00:54]}  Qc3 {[%clk 0:01:03]} 18. Rd1 {[%clk 0:00:47]}  Bd7 {[%clk 0:00:46]} 19. Ne2 {[%clk 0:00:42]}  Qxc2 {[%clk 0:00:32]} 20. Rc1 {[%clk 0:00:35]}  Qb2 {[%clk 0:00:30]} 21. Qf6 {[%clk 0:00:08]}  Qxe5 {[%clk 0:00:28]} 22. Qxe5 {[%clk 0:00:08]}  Nxe5 {[%clk 0:00:29]} 23. Bd4 {[%clk 0:00:08]}  f6 {[%clk 0:00:25]} 24. Bxe5 {[%clk 0:00:09]}  fxe5 {[%clk 0:00:26]} 25. Nc3 {[%clk 0:00:08]}  Bc6 {[%clk 0:00:25]} 26. Ke2 {[%clk 0:00:08]}  Rg8 {[%clk 0:00:21]} 27. Rhg1 {[%clk 0:00:07]}  Rd8 {[%clk 0:00:21]} 28. Rcd1 {[%clk 0:00:07]}  Ke7 {[%clk 0:00:20]} 29. Rxd8 {[%clk 0:00:06]}  Rxd8 {[%clk 0:00:21]} 30. Rd1 {[%clk 0:00:06]}  Rd4 {[%clk 0:00:21]} 31. Ke3 {[%clk 0:00:03]}  Rc4 {[%clk 0:00:19]} 32. Ne2 {[%clk 0:00:02]}  Rxc5 {[%clk 0:00:19]} 0-1


[Site "https://www.chess.com"]

[Event "Titled Tuesday Blitz December 27 Early 2022"]
[White "Sargsyan, Anna M."]
[Black "Rose, Felix"]
[WhiteFideId "13308130"]
[BlackFideId "5105722"]
[WhiteElo "2375"]
[BlackElo "2091"]
[Result "1-0"]
[Round "06"]
[TimeControl "180+2"]
[Date "2022.12.27"]
[WhiteClock "0:02:10"]
[BlackClock "0:00:03"]

1. d4 {[%clk 0:02:49]}  d5 {[%clk 0:02:58]} 2. c4 {[%clk 0:02:50]}  e6 {[%clk 0:02:58]} 3. Nf3 {[%clk 0:02:51]}  Nf6 {[%clk 0:02:59]} 4. Nc3 {[%clk 0:02:51]}  Be7 {[%clk 0:02:58]} 5. Bf4 {[%clk 0:02:50]}  O-O {[%clk 0:02:58]} 6. e3 {[%clk 0:02:51]}  b6 {[%clk 0:02:59]} 7. cxd5 {[%clk 0:02:50]}  Nxd5 {[%clk 0:02:59]} 8. Nxd5 {[%clk 0:02:50]}  Qxd5 {[%clk 0:03:00]} 9. a3 {[%clk 0:02:51]}  c5 {[%clk 0:02:52]} 10. dxc5 {[%clk 0:02:50]}  Qxc5 {[%clk 0:02:52]} 11. Bd3 {[%clk 0:02:47]}  Ba6 {[%clk 0:02:38]} 12. Bxa6 {[%clk 0:02:45]}  Qa5+ {[%clk 0:02:34]} 13. Nd2 {[%clk 0:02:39]}  Qxa6 {[%clk 0:02:33]} 14. Qe2 {[%clk 0:02:40]}  Qxe2+ {[%clk 0:02:22]} 15. Kxe2 {[%clk 0:02:41]}  Nc6 {[%clk 0:02:20]} 16. Rac1 {[%clk 0:02:41]}  Rfc8 {[%clk 0:02:19]} 17. Nc4 {[%clk 0:02:39]}  Kf8 {[%clk 0:02:08]} 18. Rhd1 {[%clk 0:02:37]}  Ke8 {[%clk 0:02:05]} 19. b4 {[%clk 0:02:33]}  b5 {[%clk 0:01:55]} 20. Nd6+ {[%clk 0:02:28]}  Bxd6 {[%clk 0:01:55]} 21. Bxd6 {[%clk 0:02:29]}  a5 {[%clk 0:01:47]} 22. Kf3 {[%clk 0:02:28]}  axb4 {[%clk 0:01:47]} 23. axb4 {[%clk 0:02:29]}  f6 {[%clk 0:01:42]} 24. g4 {[%clk 0:02:26]}  Ra6 {[%clk 0:01:17]} 25. Kg3 {[%clk 0:02:21]}  Ra2 {[%clk 0:01:03]} 26. h4 {[%clk 0:02:21]}  e5 {[%clk 0:00:55]} 27. Rc5 {[%clk 0:02:21]}  Na7 {[%clk 0:00:36]} 28. Rcd5 {[%clk 0:02:14]}  Rcc2 {[%clk 0:00:22]} 29. Bc5 {[%clk 0:02:14]}  Nc6 {[%clk 0:00:13]} 30. Rd6 {[%clk 0:02:12]}  Ne7 {[%clk 0:00:11]} 31. Re6 {[%clk 0:02:12]}  Rxc5 {[%clk 0:00:06]} 32. bxc5 {[%clk 0:02:12]}  Kf7 {[%clk 0:00:05]} 33. Rb6 {[%clk 0:02:12]}  Rc2 {[%clk 0:00:03]} 34. Rxb5 {[%clk 0:02:12]}  Nc6 {[%clk 0:00:03]} 35. Rd6 {[%clk 0:02:10]} 1-0


[Site "https://www.chess.com"]

[Event "Titled Tuesday Blitz December 27 Early 2022"]
[White "Slade, Theodore"]
[Black "Mikhailovsky, Vladimir"]
[WhiteFideId "426547"]
[BlackFideId "34105414"]
[WhiteElo "1995"]
[BlackElo "2215"]
[Result "1/2-1/2"]
[Round "06"]
[TimeControl "180+2"]
[Date "2022.12.27"]
[WhiteClock "0:00:21"]
[BlackClock "0:00:13"]

1. d4 {[%clk 0:03:00]}  d5 {[%clk 0:02:56]} 2. c4 {[%clk 0:03:00]}  c6 {[%clk 0:02:56]} 3. Nc3 {[%clk 0:03:00]}  Nf6 {[%clk 0:02:56]} 4. e3 {[%clk 0:03:01]}  Bf5 {[%clk 0:02:56]} 5. cxd5 {[%clk 0:03:01]}  cxd5 {[%clk 0:02:55]} 6. Qb3 {[%clk 0:03:01]}  Nc6 {[%clk 0:02:56]} 7. Qxb7 {[%clk 0:03:01]}  Bd7 {[%clk 0:02:56]} 8. Qb3 {[%clk 0:03:01]}  Rb8 {[%clk 0:02:56]} 9. Qd1 {[%clk 0:03:01]}  e5 {[%clk 0:02:56]} 10. dxe5 {[%clk 0:03:02]}  Nxe5 {[%clk 0:02:57]} 11. Be2 {[%clk 0:03:00]}  Bd6 {[%clk 0:02:57]} 12. Nf3 {[%clk 0:03:00]}  Nxf3+ {[%clk 0:02:57]} 13. Bxf3 {[%clk 0:03:01]}  O-O {[%clk 0:02:57]} 14. Nxd5 {[%clk 0:02:43]}  Nxd5 {[%clk 0:02:47]} 15. Qxd5 {[%clk 0:02:12]}  Be6 {[%clk 0:02:27]} 16. Qd1 {[%clk 0:02:12]}  Bb4+ {[%clk 0:02:06]} 17. Bd2 {[%clk 0:02:10]}  Bxd2+ {[%clk 0:02:06]} 18. Qxd2 {[%clk 0:02:10]}  Qxd2+ {[%clk 0:02:07]} 19. Kxd2 {[%clk 0:02:11]}  Rxb2+ {[%clk 0:02:08]} 20. Kc3 {[%clk 0:02:04]}  Rxf2 {[%clk 0:02:06]} 21. Rhf1 {[%clk 0:01:50]}  Rc8+ {[%clk 0:02:03]} 22. Kb4 {[%clk 0:01:41]}  Rb2+ {[%clk 0:01:09]} 23. Ka3 {[%clk 0:01:38]}  Rcc2 {[%clk 0:01:10]} 24. Rfc1 {[%clk 0:01:24]}  Rxa2+ {[%clk 0:01:07]} 25. Rxa2 {[%clk 0:01:23]}  Rxa2+ {[%clk 0:01:08]} 26. Kb4 {[%clk 0:01:24]}  a5+ {[%clk 0:01:02]} 27. Kc3 {[%clk 0:01:20]}  Kf8 {[%clk 0:01:01]} 28. Rb1 {[%clk 0:01:07]}  Ke7 {[%clk 0:01:00]} 29. Rb6 {[%clk 0:01:05]}  g5 {[%clk 0:00:54]} 30. h3 {[%clk 0:01:02]}  h5 {[%clk 0:00:53]} 31. Ra6 {[%clk 0:01:01]}  g4 {[%clk 0:00:53]} 32. hxg4 {[%clk 0:01:01]}  hxg4 {[%clk 0:00:54]} 33. Bc6 {[%clk 0:00:52]}  Ra3+ {[%clk 0:00:48]} 34. Kd4 {[%clk 0:00:51]}  Ra1 {[%clk 0:00:31]} 35. Ke5 {[%clk 0:00:45]}  Kf8 {[%clk 0:00:05]} 36. Kf6 {[%clk 0:00:41]}  Rf1+ {[%clk 0:00:04]} 37. Ke5 {[%clk 0:00:42]}  Kg7 {[%clk 0:00:04]} 38. Ke4 {[%clk 0:00:36]}  Rc1 {[%clk 0:00:03]} 39. Bd5 {[%clk 0:00:16]}  Bxd5+ {[%clk 0:00:02]} 40. Kxd5 {[%clk 0:00:17]}  Rg1 {[%clk 0:00:02]} 41. Ke4 {[%clk 0:00:15]}  Rxg2 {[%clk 0:00:02]} 42. Rxa5 {[%clk 0:00:15]}  Kg6 {[%clk 0:00:02]} 43. Kf4 {[%clk 0:00:15]}  f6 {[%clk 0:00:01]} 44. Rb5 {[%clk 0:00:14]}  Rg1 {[%clk 0:00:01]} 45. e4 {[%clk 0:00:13]}  Kh6 {[%clk 0:00:01]} 46. Rb6 {[%clk 0:00:11]}  Kg7 {[%clk 0:00:01]} 47. Ra6 {[%clk 0:00:11]}  g3 {[%clk 0:00:01]} 48. Kf3 {[%clk 0:00:11]}  g2 {[%clk 0:00:01]} 49. Kf2 {[%clk 0:00:11]}  Re1 {[%clk 0:00:02]} 50. Kxg2 {[%clk 0:00:11]}  Rxe4 {[%clk 0:00:02]} 51. Kf3 {[%clk 0:00:11]}  Re5 {[%clk 0:00:03]} 52. Kf4 {[%clk 0:00:12]}  Kg6 {[%clk 0:00:04]} 53. Rb6 {[%clk 0:00:12]}  Rc5 {[%clk 0:00:04]} 54. Ra6 {[%clk 0:00:12]}  Rb5 {[%clk 0:00:05]} 55. Ra4 {[%clk 0:00:12]}  Rh5 {[%clk 0:00:05]} 56. Kg4 {[%clk 0:00:12]}  f5+ {[%clk 0:00:05]} 57. Kg3 {[%clk 0:00:12]}  Kg5 {[%clk 0:00:06]} 58. Ra5 {[%clk 0:00:12]}  Rh1 {[%clk 0:00:05]} 59. Kg2 {[%clk 0:00:12]}  Rb1 {[%clk 0:00:06]} 60. Ra4 {[%clk 0:00:12]}  Rb2+ {[%clk 0:00:05]} 61. Kf3 {[%clk 0:00:13]}  Rb3+ {[%clk 0:00:06]} 62. Kf2 {[%clk 0:00:13]}  Rc3 {[%clk 0:00:06]} 63. Kg2 {[%clk 0:00:13]}  Rb3 {[%clk 0:00:06]} 64. Kf2 {[%clk 0:00:14]}  Rh3 {[%clk 0:00:07]} 65. Rb4 {[%clk 0:00:14]}  Rd3 {[%clk 0:00:06]} 66. Ra4 {[%clk 0:00:14]}  Rd7 {[%clk 0:00:07]} 67. Rb4 {[%clk 0:00:15]}  Re7 {[%clk 0:00:08]} 68. Ra4 {[%clk 0:00:15]}  Re6 {[%clk 0:00:09]} 69. Rb4 {[%clk 0:00:16]}  Ra6 {[%clk 0:00:09]} 70. Rc4 {[%clk 0:00:16]}  Rb6 {[%clk 0:00:10]} 71. Ra4 {[%clk 0:00:16]}  Rb3 {[%clk 0:00:10]} 72. Rc4 {[%clk 0:00:17]}  Rb8 {[%clk 0:00:10]} 73. Ra4 {[%clk 0:00:18]}  Rc8 {[%clk 0:00:10]} 74. Rb4 {[%clk 0:00:18]}  Ra8 {[%clk 0:00:11]} 75. Rc4 {[%clk 0:00:18]}  f4 {[%clk 0:00:11]} 76. Rc7 {[%clk 0:00:17]}  Kf5 {[%clk 0:00:10]} 77. Rf7+ {[%clk 0:00:17]}  Ke5 {[%clk 0:00:11]} 78. Re7+ {[%clk 0:00:18]}  Kf6 {[%clk 0:00:11]} 79. Rb7 {[%clk 0:00:17]}  Ra3 {[%clk 0:00:11]} 80. Rb8 {[%clk 0:00:17]}  Ke5 {[%clk 0:00:08]} 81. Re8+ {[%clk 0:00:17]}  Kd4 {[%clk 0:00:09]} 82. Re7 {[%clk 0:00:17]}  Rb3 {[%clk 0:00:08]} 83. Re8 {[%clk 0:00:18]}  Re3 {[%clk 0:00:09]} 84. Rxe3 {[%clk 0:00:17]}  fxe3+ {[%clk 0:00:09]} 85. Ke2 {[%clk 0:00:18]}  Ke4 {[%clk 0:00:10]} 86. Ke1 {[%clk 0:00:19]}  Kf4 {[%clk 0:00:11]} 87. Ke2 {[%clk 0:00:19]}  Ke4 {[%clk 0:00:12]} 88. Ke1 {[%clk 0:00:20]}  Kd3 {[%clk 0:00:12]} 89. Kd1 {[%clk 0:00:20]}  Kd4 {[%clk 0:00:13]} 90. Ke2 {[%clk 0:00:21]}  Ke4 {[%clk 0:00:13]} 1/2-1/2


[Site "https://www.chess.com"]

[Event "Titled Tuesday Blitz December 27 Early 2022"]
[White "Sreyas Payyappat"]
[Black "Musovic, Armin"]
[WhiteFideId "46674969"]
[BlackFideId "939935"]
[WhiteElo "2076"]
[BlackElo "2261"]
[Result "1-0"]
[Round "06"]
[TimeControl "180+2"]
[Date "2022.12.27"]
[WhiteClock "0:00:41"]
[BlackClock "0:00:54"]

1. e4 {[%clk 0:03:00]}  c6 {[%clk 0:02:56]} 2. d4 {[%clk 0:02:58]}  d5 {[%clk 0:02:57]} 3. Nc3 {[%clk 0:02:59]}  dxe4 {[%clk 0:02:57]} 4. Nxe4 {[%clk 0:03:00]}  Nf6 {[%clk 0:02:58]} 5. Nxf6+ {[%clk 0:02:59]}  exf6 {[%clk 0:02:58]} 6. Bc4 {[%clk 0:02:59]}  Na6 {[%clk 0:02:58]} 7. Nf3 {[%clk 0:02:57]}  Be7 {[%clk 0:02:47]} 8. O-O {[%clk 0:02:53]}  O-O {[%clk 0:02:47]} 9. Re1 {[%clk 0:02:52]}  Bg4 {[%clk 0:02:45]} 10. c3 {[%clk 0:02:51]}  b5 {[%clk 0:02:42]} 11. Bd3 {[%clk 0:02:45]}  Bh5 {[%clk 0:02:39]} 12. Qc2 {[%clk 0:02:34]}  Bg6 {[%clk 0:02:38]} 13. Bxg6 {[%clk 0:02:27]}  hxg6 {[%clk 0:02:39]} 14. Bf4 {[%clk 0:02:28]}  Nc7 {[%clk 0:02:38]} 15. b3 {[%clk 0:02:15]}  Nd5 {[%clk 0:02:35]} 16. Bg3 {[%clk 0:02:13]}  a5 {[%clk 0:02:33]} 17. a3 {[%clk 0:02:03]}  b4 {[%clk 0:02:13]} 18. axb4 {[%clk 0:01:51]}  Re8 {[%clk 0:01:45]} 19. bxa5 {[%clk 0:01:42]}  Rxa5 {[%clk 0:01:41]} 20. c4 {[%clk 0:01:32]}  Rxa1 {[%clk 0:01:26]} 21. Rxa1 {[%clk 0:01:33]}  Nb4 {[%clk 0:01:23]} 22. Qc3 {[%clk 0:01:31]}  Bf8 {[%clk 0:01:24]} 23. h3 {[%clk 0:01:28]}  g5 {[%clk 0:01:21]} 24. Ra4 {[%clk 0:01:18]}  f5 {[%clk 0:00:58]} 25. Rxb4 {[%clk 0:00:58]}  Bxb4 {[%clk 0:00:59]} 26. Qxb4 {[%clk 0:00:59]}  g4 {[%clk 0:00:56]} 27. hxg4 {[%clk 0:00:55]}  fxg4 {[%clk 0:00:57]} 28. Ne5 {[%clk 0:00:51]}  Qxd4 {[%clk 0:00:57]} 29. Nxc6 {[%clk 0:00:43]}  Re1+ {[%clk 0:00:53]} 30. Qxe1 {[%clk 0:00:41]}  Qxf2+ {[%clk 0:00:54]} 1-0


[Site "https://www.chess.com"]

[Event "Titled Tuesday Blitz December 27 Early 2022"]
[White "Stork, Oliver"]
[Black "Lewtak, Damian"]
[WhiteFideId "12955728"]
[BlackFideId "1141724"]
[WhiteElo "2342"]
[BlackElo "2381"]
[Result "0-1"]
[Round "06"]
[TimeControl "180+2"]
[Date "2022.12.27"]
[WhiteClock "0:00:01"]
[BlackClock "0:00:14"]

1. d4 {[%clk 0:03:00]}  g6 {[%clk 0:02:57]} 2. Nf3 {[%clk 0:03:01]}  Bg7 {[%clk 0:02:56]} 3. c4 {[%clk 0:03:00]}  d6 {[%clk 0:02:54]} 4. Nc3 {[%clk 0:03:01]}  e5 {[%clk 0:02:54]} 5. g3 {[%clk 0:03:00]}  Nc6 {[%clk 0:02:48]} 6. dxe5 {[%clk 0:03:00]}  dxe5 {[%clk 0:02:47]} 7. Qxd8+ {[%clk 0:02:59]}  Nxd8 {[%clk 0:02:39]} 8. Bg2 {[%clk 0:02:55]}  Be6 {[%clk 0:02:26]} 9. Nd5 {[%clk 0:02:39]}  Rc8 {[%clk 0:02:18]} 10. Ng5 {[%clk 0:02:29]}  c6 {[%clk 0:01:56]} 11. Nxe6 {[%clk 0:02:22]}  Nxe6 {[%clk 0:01:57]} 12. Nc3 {[%clk 0:02:15]}  Bh6 {[%clk 0:01:55]} 13. e3 {[%clk 0:02:11]}  Bf8 {[%clk 0:01:49]} 14. Ke2 {[%clk 0:02:07]}  Bb4 {[%clk 0:01:44]} 15. Bd2 {[%clk 0:02:05]}  f5 {[%clk 0:01:38]} 16. a3 {[%clk 0:02:01]}  Be7 {[%clk 0:01:37]} 17. b4 {[%clk 0:01:59]}  Nf6 {[%clk 0:01:34]} 18. Rhc1 {[%clk 0:01:31]}  Kf7 {[%clk 0:01:31]} 19. Na4 {[%clk 0:01:31]}  h5 {[%clk 0:01:27]} 20. h4 {[%clk 0:01:28]}  e4 {[%clk 0:01:25]} 21. Ke1 {[%clk 0:01:26]}  Ng4 {[%clk 0:01:16]} 22. Bf1 {[%clk 0:01:24]}  Rhd8 {[%clk 0:01:12]} 23. c5 {[%clk 0:01:13]}  Ne5 {[%clk 0:01:08]} 24. Be2 {[%clk 0:01:10]}  Bf6 {[%clk 0:01:01]} 25. Bc3 {[%clk 0:01:09]}  Ke7 {[%clk 0:00:54]} 26. Nb2 {[%clk 0:01:08]}  g5 {[%clk 0:00:52]} 27. hxg5 {[%clk 0:01:02]}  Nxg5 {[%clk 0:00:53]} 28. Nc4 {[%clk 0:01:00]}  Nxc4 {[%clk 0:00:45]} 29. Bxf6+ {[%clk 0:00:52]}  Kxf6 {[%clk 0:00:43]} 30. Rxc4 {[%clk 0:00:53]}  Ke5 {[%clk 0:00:28]} 31. Rd1 {[%clk 0:00:41]}  Rxd1+ {[%clk 0:00:28]} 32. Bxd1 {[%clk 0:00:41]}  Rh8 {[%clk 0:00:28]} 33. Rd4 {[%clk 0:00:40]}  h4 {[%clk 0:00:24]} 34. gxh4 {[%clk 0:00:41]}  Rxh4 {[%clk 0:00:24]} 35. Rd7 {[%clk 0:00:40]}  Rh1+ {[%clk 0:00:23]} 36. Kd2 {[%clk 0:00:39]}  Rf1 {[%clk 0:00:23]} 37. Ke2 {[%clk 0:00:32]}  Rh1 {[%clk 0:00:21]} 38. Kd2 {[%clk 0:00:18]}  Rh7 {[%clk 0:00:19]} 39. Rxh7 {[%clk 0:00:15]}  Nxh7 {[%clk 0:00:20]} 40. Bb3 {[%clk 0:00:15]}  Nf6 {[%clk 0:00:20]} 41. a4 {[%clk 0:00:14]}  a5 {[%clk 0:00:19]} 42. bxa5 {[%clk 0:00:13]}  Nd7 {[%clk 0:00:18]} 43. a6 {[%clk 0:00:07]}  bxa6 {[%clk 0:00:18]} 44. a5 {[%clk 0:00:05]}  Nxc5 {[%clk 0:00:18]} 45. Bc4 {[%clk 0:00:06]}  Nb7 {[%clk 0:00:17]} 46. Bxa6 {[%clk 0:00:06]}  Nxa5 {[%clk 0:00:17]} 47. Kc3 {[%clk 0:00:06]}  c5 {[%clk 0:00:16]} 48. Bc8 {[%clk 0:00:05]}  Nc6 {[%clk 0:00:14]} 49. Kc4 {[%clk 0:00:04]}  Nb4 {[%clk 0:00:14]} 50. Kxc5 {[%clk 0:00:02]}  Nd3+ {[%clk 0:00:14]} 51. Kc4 {[%clk 0:00:02]}  Nxf2 {[%clk 0:00:15]} 52. Kc3 {[%clk 0:00:02]}  Ng4 {[%clk 0:00:14]} 53. Kd2 {[%clk 0:00:02]}  Nf6 {[%clk 0:00:15]} 54. Bb7 {[%clk 0:00:01]}  Ne8 {[%clk 0:00:14]} 0-1


[Site "https://www.chess.com"]

[Event "Titled Tuesday Blitz December 27 Early 2022"]
[White "Szyszylo, Rafal"]
[Black "Mitrovic, Darko R"]
[WhiteFideId "1109626"]
[BlackFideId "927023"]
[WhiteElo "2091"]
[BlackElo "2220"]
[Result "1-0"]
[Round "06"]
[TimeControl "180+2"]
[Date "2022.12.27"]
[WhiteClock "0:00:21"]
[BlackClock "0:00:01"]

1. e4 {[%clk 0:03:00]}  e6 {[%clk 0:02:53]} 2. d4 {[%clk 0:03:00]}  d5 {[%clk 0:02:53]} 3. e5 {[%clk 0:03:00]}  c5 {[%clk 0:02:53]} 4. c3 {[%clk 0:03:00]}  Bd7 {[%clk 0:02:53]} 5. Nf3 {[%clk 0:03:00]}  Qb6 {[%clk 0:02:54]} 6. a3 {[%clk 0:02:57]}  Bb5 {[%clk 0:02:54]} 7. c4 {[%clk 0:02:51]}  Bxc4 {[%clk 0:02:40]} 8. Bxc4 {[%clk 0:02:49]}  dxc4 {[%clk 0:02:41]} 9. Nbd2 {[%clk 0:02:42]}  Nc6 {[%clk 0:02:31]} 10. dxc5 {[%clk 0:02:27]}  Bxc5 {[%clk 0:02:25]} 11. O-O {[%clk 0:02:25]}  Nge7 {[%clk 0:01:39]} 12. Nxc4 {[%clk 0:02:19]}  Qa6 {[%clk 0:01:34]} 13. Nd6+ {[%clk 0:01:38]}  Bxd6 {[%clk 0:01:33]} 14. exd6 {[%clk 0:01:38]}  Nd5 {[%clk 0:01:33]} 15. d7+ {[%clk 0:01:32]}  Kxd7 {[%clk 0:01:31]} 16. Ng5 {[%clk 0:01:14]}  Ke7 {[%clk 0:01:25]} 17. Qh5 {[%clk 0:01:07]}  Raf8 {[%clk 0:01:00]} 18. Nxh7 {[%clk 0:00:37]}  Rd8 {[%clk 0:00:21]} 19. Qg5+ {[%clk 0:00:32]}  Nf6 {[%clk 0:00:17]} 20. Nxf6 {[%clk 0:00:31]}  gxf6 {[%clk 0:00:17]} 21. Qc5+ {[%clk 0:00:31]}  Ke8 {[%clk 0:00:10]} 22. Be3 {[%clk 0:00:28]}  Qd3 {[%clk 0:00:07]} 23. b4 {[%clk 0:00:23]}  Qd5 {[%clk 0:00:04]} 24. Qc3 {[%clk 0:00:21]}  Rg8 {[%clk 0:00:01]} 25. g3 {[%clk 0:00:21]} 1-0


[Site "https://www.chess.com"]

[Event "Titled Tuesday Blitz December 27 Early 2022"]
[White "Tan, Zhongyi"]
[Black "Tactrics"]
[WhiteFideId "8603642"]
[WhiteElo "2517"]
[BlackElo "2976"]
[Result "0-1"]
[Round "06"]
[TimeControl "180+2"]
[Date "2022.12.27"]
[WhiteClock "0:02:12"]
[BlackClock "0:02:55"]

1. d4 {[%clk 0:03:00]}  Nf6 {[%clk 0:03:00]} 2. c4 {[%clk 0:03:01]}  e6 {[%clk 0:03:00]} 3. Nf3 {[%clk 0:03:01]}  Bb4+ {[%clk 0:03:01]} 4. Nbd2 {[%clk 0:03:01]}  O-O {[%clk 0:03:00]} 5. a3 {[%clk 0:02:58]}  Be7 {[%clk 0:03:01]} 6. e4 {[%clk 0:02:58]}  d6 {[%clk 0:03:02]} 7. Bd3 {[%clk 0:02:49]}  Nfd7 {[%clk 0:03:03]} 8. O-O {[%clk 0:02:48]}  e5 {[%clk 0:03:01]} 9. b4 {[%clk 0:02:45]}  exd4 {[%clk 0:03:00]} 10. Nxd4 {[%clk 0:02:46]}  Bf6 {[%clk 0:03:00]} 11. Bb2 {[%clk 0:02:46]}  c5 {[%clk 0:03:00]} 12. N2b3 {[%clk 0:02:11]}  cxd4 {[%clk 0:02:56]} 13. Nxd4 {[%clk 0:02:12]}  Nc6 {[%clk 0:02:55]} 0-1


[Site "https://www.chess.com"]

[Event "Titled Tuesday Blitz December 27 Early 2022"]
[White "Tanenbaum, Zachary"]
[Black "Rengifo Blancas, Renzo Jhonathan"]
[WhiteFideId "2060850"]
[BlackFideId "3807185"]
[WhiteElo "2261"]
[BlackElo "2131"]
[Result "1-0"]
[Round "06"]
[TimeControl "180+2"]
[Date "2022.12.27"]
[WhiteClock "0:00:51"]
[BlackClock "0:00:03"]

1. e4 {[%clk 0:03:00]}  e6 {[%clk 0:00:46]} 2. d4 {[%clk 0:02:56]}  d5 {[%clk 0:00:46]} 3. Nc3 {[%clk 0:02:57]}  dxe4 {[%clk 0:00:46]} 4. Nxe4 {[%clk 0:02:58]}  Be7 {[%clk 0:00:47]} 5. Nf3 {[%clk 0:02:58]}  Nf6 {[%clk 0:00:47]} 6. Bd3 {[%clk 0:02:57]}  O-O {[%clk 0:00:48]} 7. Qe2 {[%clk 0:02:52]}  g6 {[%clk 0:00:47]} 8. Bh6 {[%clk 0:02:51]}  Re8 {[%clk 0:00:46]} 9. Nxf6+ {[%clk 0:02:50]}  Bxf6 {[%clk 0:00:47]} 10. O-O-O {[%clk 0:02:51]}  Nd7 {[%clk 0:00:42]} 11. h4 {[%clk 0:02:48]}  c5 {[%clk 0:00:39]} 12. dxc5 {[%clk 0:02:47]}  Qa5 {[%clk 0:00:38]} 13. Kb1 {[%clk 0:02:44]}  Nxc5 {[%clk 0:00:38]} 14. h5 {[%clk 0:02:39]}  Na4 {[%clk 0:00:37]} 15. hxg6 {[%clk 0:02:37]}  hxg6 {[%clk 0:00:32]} 16. c3 {[%clk 0:01:58]}  Bxc3 {[%clk 0:00:29]} 17. Bb5 {[%clk 0:01:23]}  Nxb2 {[%clk 0:00:14]} 18. Bxe8 {[%clk 0:01:23]}  Nxd1 {[%clk 0:00:14]} 19. Qxd1 {[%clk 0:01:20]}  e5 {[%clk 0:00:06]} 20. Bxf7+ {[%clk 0:00:52]}  Kxf7 {[%clk 0:00:06]} 21. Qb3+ {[%clk 0:00:52]}  Be6 {[%clk 0:00:06]} 22. Ng5+ {[%clk 0:00:51]}  Kf6 {[%clk 0:00:03]} 23. Qxe6# {[%clk 0:00:51]} 1-0


[Site "https://www.chess.com"]

[Event "Titled Tuesday Blitz December 27 Early 2022"]
[White "Tarasova, Viktoriya"]
[Black "Piesik, Piotr"]
[WhiteFideId "4175840"]
[BlackFideId "1136194"]
[WhiteElo "2226"]
[BlackElo "2426"]
[Result "0-1"]
[Round "06"]
[TimeControl "180+2"]
[Date "2022.12.27"]
[WhiteClock "0:01:23"]
[BlackClock "0:02:22"]

1. d4 {[%clk 0:02:56]}  c5 {[%clk 0:02:59]} 2. d5 {[%clk 0:02:55]}  e5 {[%clk 0:02:59]} 3. Nc3 {[%clk 0:02:54]}  d6 {[%clk 0:02:59]} 4. e4 {[%clk 0:02:54]}  Be7 {[%clk 0:03:00]} 5. Nf3 {[%clk 0:02:54]}  a6 {[%clk 0:02:59]} 6. a4 {[%clk 0:02:53]}  Bg4 {[%clk 0:02:59]} 7. h3 {[%clk 0:02:52]}  Bxf3 {[%clk 0:02:59]} 8. Qxf3 {[%clk 0:02:52]}  Bg5 {[%clk 0:02:59]} 9. Qg3 {[%clk 0:02:51]}  Bxc1 {[%clk 0:02:58]} 10. Rxc1 {[%clk 0:02:50]}  Qf6 {[%clk 0:02:59]} 11. Be2 {[%clk 0:02:48]}  Ne7 {[%clk 0:02:59]} 12. O-O {[%clk 0:02:48]}  Ng6 {[%clk 0:02:59]} 13. Kh2 {[%clk 0:02:38]}  Nf4 {[%clk 0:02:53]} 14. Bc4 {[%clk 0:02:35]}  h5 {[%clk 0:02:51]} 15. Qe3 {[%clk 0:02:27]}  h4 {[%clk 0:02:50]} 16. Ne2 {[%clk 0:02:24]}  Nd7 {[%clk 0:02:49]} 17. Ng1 {[%clk 0:02:20]}  Qg6 {[%clk 0:02:32]} 18. g3 {[%clk 0:01:47]}  hxg3+ {[%clk 0:02:30]} 19. fxg3 {[%clk 0:01:47]}  Nxh3 {[%clk 0:02:23]} 20. Nxh3 {[%clk 0:01:46]}  Qg4 {[%clk 0:02:23]} 21. Qf3 {[%clk 0:01:23]}  Qxh3+ {[%clk 0:02:22]} 0-1


[Site "https://www.chess.com"]